fUSD/lending_fUSD_20250426
["ID","MTS","AMOUNT","RATE_DAILY","PERIOD"]
[359099952,1745706651263,-1337.65204357,0.0001998,2]
[359099955,1745706651275,-296.57630019,0.0001998,2]
[359099999,1745706651702,-506.83098972,0.00019777,2]
[359100002,1745706651718,-167.42203085,0.00019777,2]
[359100004,1745706651727,-400.0,0.00019779,2]
[359100006,1745706651737,-400.0,0.0001978,2]
[359100008,1745706651747,-23801.69480093,0.0001998,2]
[359100011,1745706651764,-500.0,0.00019779,2]
[359100013,1745706651774,-8976.78284981,0.0001998,2]
[359100054,1745706652169,-400.0,0.00019778,2]
[359100056,1745706652179,-258.1716185,0.0001978,2]
[359100058,1745706652188,-400.0,0.0001978,2]
[359100060,1745706652198,-151.0,0.0001987,2]
[359100062,1745706652207,-999.86157012,0.0001998,2]
[359100064,1745706652219,-37038.9099796,0.0001998,2]
[359100080,1745706652369,-400.0,0.0001978,2]
[359100083,1745706652378,-525.82898763,0.00019923,2]
[359100210,1745706878456,509.2,0.000311,120]
[359100211,1745706878764,509.2,0.000314,120]
[359100212,1745706879057,509.2,0.000317,120]
[359100213,1745706879370,509.2,0.000321,120]
[359100214,1745707070146,381.15,0.00016947,2]
[359100215,1745707070346,381.15,0.00019211,2]
[359100216,1745707161027,216.83,0.00018804,2]
[359100217,1745707205147,5801.98,0.00019,2]
[359100218,1745707214903,9968.2,0.0003,30]
[359100219,1745707294537,300.0,0.0003,30]
[359100220,1745707316524,200.0,0.00019301,2]
[359100221,1745707432435,165.0,0.00036986,60]
[359100222,1745707438661,1000.0,0.00018775,2]
[359100223,1745707611940,150.0,0.00018778,7]
[359100224,1745707628171,250.0,0.00017,2]
[359100225,1745707629131,300.0,0.00019,2]
[359100265,1745707774427,174.5,0.00018791,2]
[359100266,1745707774551,174.5,0.00028187,120]
[359100279,1745707832170,-200.0,0.00019572,2]
[359100280,1745707832180,-250.0,0.00019573,2]
[359100281,1745707832190,-167.3796736,0.00019576,2]
[359100282,1745707832201,-200.0,0.00019594,2]
[359100283,1745707832210,-166.67,0.00019595,2]
[359100284,1745707832220,-150.0,0.00019644,2]
[359100285,1745707832231,-1200.0,0.00019675,2]
[359100286,1745707832242,-850.0,0.00019676,2]
[359100287,1745707832252,-300.0,0.00019676,2]
[359100288,1745707832263,-500.0,0.00019677,2]
[359100289,1745707832272,-500.0,0.00019677,2]
[359100290,1745707832282,-500.0,0.00019677,2]
[359100291,1745707832292,-500.0,0.00019677,2]
[359100292,1745707832302,-500.0,0.00019677,2]
[359100293,1745707832312,-500.0,0.00019677,2]
[359100294,1745707832324,-500.0,0.00019677,2]
[359100295,1745707832334,-500.0,0.00019677,2]
[359100296,1745707832345,-500.0,0.00019677,2]
[359100297,1745707832355,-500.0,0.00019677,2]
[359100298,1745707832367,-500.0,0.00019677,2]
[359100299,1745707832378,-500.0,0.00019677,2]
[359100300,1745707832388,-500.0,0.00019677,2]
[359100301,1745707832399,-500.0,0.00019677,2]
[359100302,1745707832410,-500.0,0.00019677,2]
[359100303,1745707832420,-500.0,0.00019677,2]
[359100304,1745707832431,-500.0,0.00019677,2]
[359100305,1745707832442,-500.0,0.00019677,2]
[359100306,1745707832453,-500.0,0.00019677,2]
[359100307,1745707832463,-500.0,0.00019677,2]
[359100308,1745707832473,-500.0,0.00019677,2]
[359100309,1745707832484,-500.0,0.00019677,2]
[359100310,1745707832495,-500.0,0.00019677,2]
[359100311,1745707832512,-500.0,0.00019677,2]
[359100312,1745707832522,-500.0,0.00019677,2]
[359100313,1745707832532,-283.19779644,0.00019677,2]
[359100314,1745707832543,-1655.87987932,0.00019678,2]
[359100316,1745707832552,-337.12651033,0.00019678,2]
[359100318,1745707832562,-567.07412978,0.00019678,2]
[359100320,1745707832572,-178.26918905,0.00019678,2]
[359100322,1745707832582,-2500.0,0.00019678,2]
[359100324,1745707832593,-1655.87987926,0.00019703,2]
[359100326,1745707832603,-337.12651028,0.00019703,2]
[359100328,1745707832613,-1655.87987926,0.00019727,2]
[359100330,1745707832624,-337.12651028,0.00019727,2]
[359100332,1745707832635,-1655.87987926,0.00019752,2]
[359100334,1745707832645,-337.12651028,0.00019752,2]
[359100336,1745707832655,-178.26918905,0.00019752,2]
[359100339,1745707832665,-151.0,0.00019767,2]
[359100343,1745707832675,-207.4,0.00019767,2]
[359100346,1745707832686,-479.81809457,0.00019773,2]
[359100349,1745707832695,-627.68783008,0.00019773,2]
[359100352,1745707832705,-402.18050718,0.00019773,2]
[359100355,1745707832715,-185.73616911,0.00019773,2]
[359100358,1745707832725,-172.06377931,0.00019773,2]
[359100361,1745707832734,-500.0,0.00019773,2]
[359100364,1745707832744,-158.54322453,0.00019773,2]
[359100367,1745707832754,-500.0,0.00019773,2]
[359100370,1745707832765,-1655.87987926,0.00019777,2]
[359100373,1745707832775,-337.12651028,0.00019777,2]
[359100377,1745707832785,-500.0,0.00019777,2]
[359100381,1745707832795,-500.0,0.00019777,2]
[359100384,1745707832805,-512.15162655,0.00019777,2]
[359100386,1745707832815,-400.0,0.00019777,2]
[359100388,1745707832824,-400.0,0.00019777,2]
[359100390,1745707832834,-400.0,0.00019777,2]
[359100392,1745707832844,-400.0,0.00019777,2]
[359100394,1745707832854,-400.0,0.00019777,2]
[359100396,1745707832866,-400.0,0.00019777,2]
[359100398,1745707832876,-400.0,0.00019777,2]
[359100400,1745707832886,-400.0,0.00019777,2]
[359100402,1745707832896,-400.0,0.00019777,2]
[359100404,1745707832906,-400.0,0.00019777,2]
[359100406,1745707832916,-400.0,0.00019777,2]
[359100408,1745707832926,-362.35328234,0.00019777,2]
[359100410,1745707832939,-667.16,0.00019777,2]
[359100413,1745707832959,-515.24,0.00019777,2]
[359100415,1745707832971,-400.0,0.00019777,2]
[359100417,1745707832982,-400.0,0.00019777,2]
[359100419,1745707832992,-400.0,0.00019777,2]
[359100421,1745707833003,-400.0,0.00019777,2]
[359100423,1745707833015,-400.0,0.00019777,2]
[359100426,1745707833028,-400.0,0.00019777,2]
[359100428,1745707833038,-250.0,0.00019777,2]
[359100430,1745707833048,-400.0,0.00019777,2]
[359100432,1745707833059,-467.79,0.00019777,2]
[359100434,1745707833070,-400.0,0.00019777,2]
[359100436,1745707833081,-400.0,0.00019777,2]
[359100438,1745707833092,-400.0,0.00019777,2]
[359100440,1745707833103,-500.0,0.00019777,2]
[359100442,1745707833116,-555.95,0.00019777,2]
[359100444,1745707833127,-400.0,0.00019777,2]
[359100446,1745707833138,-430.0,0.00019777,2]
[359100448,1745707833149,-400.0,0.00019777,2]
[359100451,1745707833161,-500.0,0.00019777,2]
[359100453,1745707833172,-906.79,0.00019777,2]
[359100455,1745707833183,-400.0,0.00019777,2]
[359100457,1745707833194,-400.0,0.00019777,2]
[359100459,1745707833205,-556.98,0.00019777,2]
[359100460,1745707833216,-512.80951614,0.00019777,2]
[359100463,1745707833228,-400.0,0.00019777,2]
[359100465,1745707833238,-400.0,0.00019777,2]
[359100467,1745707833249,-400.93,0.00019777,2]
[359100469,1745707833260,-400.0,0.00019777,2]
[359100471,1745707833270,-422.87,0.00019777,2]
[359100473,1745707833281,-500.0,0.00019777,2]
[359100475,1745707833292,-469.39,0.00019777,2]
[359100477,1745707833301,-516.61,0.00019777,2]
[359100479,1745707833312,-400.0,0.00019777,2]
[359100481,1745707833322,-602.22,0.00019777,2]
[359100483,1745707833333,-400.0,0.00019777,2]
[359100485,1745707833344,-498.99,0.00019777,2]
[359100487,1745707833354,-400.0,0.00019777,2]
[359100489,1745707833366,-400.0,0.00019777,2]
[359100491,1745707833377,-400.0,0.00019777,2]
[359100493,1745707833388,-400.0,0.00019777,2]
[359100496,1745707833398,-400.0,0.00019777,2]
[359100498,1745707833413,-504.11,0.00019777,2]
[359100500,1745707833424,-400.0,0.00019777,2]
[359100502,1745707833434,-400.0,0.00019777,2]
[359100504,1745707833444,-400.0,0.00019777,2]
[359100506,1745707833455,-400.0,0.00019777,2]
[359100508,1745707833465,-400.0,0.00019777,2]
[359100510,1745707833475,-400.0,0.00019777,2]
[359100512,1745707833485,-400.0,0.00019777,2]
[359100514,1745707833495,-500.0,0.00019777,2]
[359100516,1745707833505,-400.0,0.00019777,2]
[359100518,1745707833516,-400.0,0.00019777,2]
[359100520,1745707833527,-400.0,0.00019777,2]
[359100522,1745707833537,-563.1,0.00019777,2]
[359100524,1745707833547,-400.0,0.00019777,2]
[359100526,1745707833558,-400.0,0.00019777,2]
[359100528,1745707833569,-400.0,0.00019777,2]
[359100530,1745707833579,-400.0,0.00019777,2]
[359100532,1745707833589,-400.0,0.00019777,2]
[359100534,1745707833599,-400.0,0.00019777,2]
[359100536,1745707833609,-400.0,0.00019777,2]
[359100538,1745707833621,-273.92571822,0.00019777,2]
[359100540,1745707833631,-721.78,0.00019777,2]
[359100542,1745707833641,-400.0,0.00019777,2]
[359100544,1745707833653,-400.0,0.00019777,2]
[359100547,1745707833663,-400.0,0.00019777,2]
[359100549,1745707833674,-400.0,0.00019777,2]
[359100551,1745707833684,-400.0,0.00019777,2]
[359100553,1745707833694,-642.95,0.00019777,2]
[359100555,1745707833704,-400.0,0.00019777,2]
[359100557,1745707833715,-5698.21,0.00019777,2]
[359100559,1745707833725,-570.06,0.00019777,2]
[359100561,1745707833735,-400.0,0.00019777,2]
[359100563,1745707833745,-400.0,0.00019777,2]
[359100565,1745707833755,-400.0,0.00019777,2]
[359100567,1745707833766,-400.0,0.00019777,2]
[359100569,1745707833776,-400.0,0.00019777,2]
[359100571,1745707833785,-521.72,0.00019777,2]
[359100573,1745707833795,-400.0,0.00019777,2]
[359100575,1745707833805,-400.0,0.00019777,2]
[359100577,1745707833816,-479.19,0.00019777,2]
[359100579,1745707833826,-400.0,0.00019777,2]
[359100582,1745707833840,-925.69,0.00019777,2]
[359100584,1745707833850,-489.1,0.00019777,2]
[359100586,1745707833861,-400.0,0.00019777,2]
[359100588,1745707833871,-449.45121917,0.00019777,2]
[359100590,1745707833881,-400.0,0.00019777,2]
[359100592,1745707833892,-466.75,0.00019777,2]
[359100594,1745707833901,-400.0,0.00019777,2]
[359100632,1745707834262,-400.0,0.00019777,2]
[359100634,1745707834274,-621.48,0.00019777,2]
[359100636,1745707834284,-400.0,0.00019777,2]
[359100638,1745707834294,-400.0,0.00019777,2]
[359100639,1745707834303,-579.99,0.00019777,2]
[359100640,1745707834314,-536.94466659,0.00019778,2]
[359100641,1745707834324,-212.27858785,0.00019778,2]
[359100642,1745707834334,-202.565733,0.00019778,2]
[359100643,1745707834344,-400.0,0.00019778,2]
[359100644,1745707834354,-400.0,0.00019778,2]
[359100645,1745707834364,-207.751237,0.00019778,2]
[359100646,1745707834374,-400.0,0.00019778,2]
[359100647,1745707834384,-500.0,0.00019778,2]
[359100648,1745707834394,-458.51615229,0.00019778,2]
[359100649,1745707834404,-636.32,0.00019778,2]
[359100650,1745707834414,-400.0,0.00019778,2]
[359100651,1745707834424,-500.0,0.00019778,2]
[359100652,1745707834434,-550.15,0.00019778,2]
[359100653,1745707834445,-432.5,0.00019778,2]
[359100654,1745707834455,-500.0,0.00019778,2]
[359100655,1745707834466,-400.0,0.00019778,2]
[359100656,1745707834476,-400.0,0.00019778,2]
[359100658,1745707834486,-400.0,0.00019778,2]
[359100660,1745707834496,-539.83,0.00019778,2]
[359100662,1745707834506,-400.0,0.00019778,2]
[359100664,1745707834516,-400.0,0.00019778,2]
[359100666,1745707834525,-500.0,0.00019778,2]
[359100668,1745707834535,-473.35,0.00019778,2]
[359100670,1745707834545,-400.0,0.00019778,2]
[359100672,1745707834554,-400.0,0.00019778,2]
[359100674,1745707834564,-667.69,0.00019778,2]
[359100676,1745707834574,-425.41,0.00019778,2]
[359100678,1745707834583,-400.0,0.00019778,2]
[359100680,1745707834593,-400.0,0.00019778,2]
[359100682,1745707834603,-6.02998028,0.00019778,2]
[359100685,1745707834628,-404.15001972,0.00019778,2]
[359100687,1745707834638,-500.0,0.00019778,2]
[359100689,1745707834648,-400.0,0.00019778,2]
[359100691,1745707834659,-400.0,0.00019778,2]
[359100693,1745707834669,-614.5,0.00019778,2]
[359100695,1745707834680,-400.0,0.00019778,2]
[359100697,1745707834690,-400.0,0.00019778,2]
[359100699,1745707834699,-400.0,0.00019778,2]
[359100701,1745707834709,-400.0,0.00019778,2]
[359100703,1745707834719,-664.3,0.00019778,2]
[359100705,1745707834729,-400.0,0.00019778,2]
[359100707,1745707834739,-473.18,0.00019778,2]
[359100709,1745707834748,-400.0,0.00019778,2]
[359100711,1745707834758,-237.5090472,0.00019778,2]
[359100713,1745707834768,-432.51,0.00019778,2]
[359100715,1745707834778,-400.0,0.00019778,2]
[359100717,1745707834788,-481.88986859,0.00019778,2]
[359100719,1745707834797,-400.0,0.00019778,2]
[359100721,1745707834807,-400.0,0.00019778,2]
[359100723,1745707834817,-501.42725082,0.00019778,2]
[359100725,1745707834828,-400.0,0.00019778,2]
[359100727,1745707834838,-471.96,0.00019778,2]
[359100729,1745707834848,-507.44276826,0.00019778,2]
[359100731,1745707834858,-529.40516209,0.00019778,2]
[359100733,1745707834869,-400.0,0.00019778,2]
[359100735,1745707834879,-400.0,0.00019778,2]
[359100737,1745707834889,-400.0,0.00019778,2]
[359100739,1745707834899,-400.0,0.00019778,2]
[359100741,1745707834908,-400.0,0.00019778,2]
[359100743,1745707834918,-400.0,0.00019778,2]
[359100745,1745707834930,-687.44,0.00019778,2]
[359100747,1745707834946,-400.0,0.00019778,2]
[359100750,1745707834956,-515.52386611,0.00019778,2]
[359100752,1745707834965,-400.0,0.00019778,2]
[359100754,1745707834976,-400.0,0.00019778,2]
[359100756,1745707834986,-400.0,0.00019778,2]
[359100758,1745707834995,-1036.65,0.00019778,2]
[359100760,1745707835005,-510.8509464,0.00019778,2]
[359100762,1745707835016,-500.0,0.00019778,2]
[359100764,1745707835026,-400.0,0.00019778,2]
[359100766,1745707835036,-400.0,0.00019778,2]
[359100767,1745707835045,-400.0,0.00019778,2]
[359100769,1745707835055,-400.0,0.00019778,2]
[359100771,1745707835065,-585.39,0.00019778,2]
[359100773,1745707835075,-400.0,0.00019778,2]
[359100775,1745707835084,-601.28,0.00019778,2]
[359100777,1745707835095,-415.0,0.00019778,2]
[359100779,1745707835105,-456.56,0.00019778,2]
[359100781,1745707835115,-400.0,0.00019778,2]
[359100783,1745707835124,-400.0,0.00019778,2]
[359100785,1745707835134,-400.0,0.00019778,2]
[359100787,1745707835144,-675.69,0.00019778,2]
[359100789,1745707835154,-432.5,0.00019778,2]
[359100791,1745707835163,-400.0,0.00019778,2]
[359100793,1745707835174,-400.0,0.00019778,2]
[359100795,1745707835184,-400.0,0.00019778,2]
[359100797,1745707835194,-400.0,0.00019778,2]
[359100799,1745707835204,-400.0,0.00019778,2]
[359100801,1745707835214,-523.65,0.00019778,2]
[359100803,1745707835224,-400.0,0.00019778,2]
[359100805,1745707835235,-459.83,0.00019778,2]
[359100807,1745707835245,-400.0,0.00019778,2]
[359100809,1745707835255,-400.0,0.00019778,2]
[359100811,1745707835265,-435.11,0.00019778,2]
[359100813,1745707835275,-400.0,0.00019778,2]
[359100815,1745707835285,-400.0,0.00019778,2]
[359100817,1745707835294,-400.0,0.00019778,2]
[359100819,1745707835304,-400.0,0.00019778,2]
[359100821,1745707835314,-400.0,0.00019778,2]
[359100823,1745707835323,-400.0,0.00019778,2]
[359100825,1745707835333,-425.33874986,0.00019778,2]
[359100827,1745707835343,-433.01,0.00019778,2]
[359100829,1745707835353,-484.35,0.00019778,2]
[359100831,1745707835363,-460.66,0.00019778,2]
[359100833,1745707835372,-400.0,0.00019778,2]
[359100835,1745707835382,-400.0,0.00019778,2]
[359100837,1745707835392,-400.0,0.00019778,2]
[359100839,1745707835401,-400.0,0.00019778,2]
[359100841,1745707835411,-400.0,0.00019778,2]
[359100843,1745707835420,-400.0,0.00019778,2]
[359100845,1745707835430,-400.0,0.00019778,2]
[359100847,1745707835439,-516.11,0.00019778,2]
[359100849,1745707835450,-468.29,0.00019778,2]
[359100851,1745707835459,-546.31,0.00019778,2]
[359100853,1745707835469,-400.0,0.00019778,2]
[359100855,1745707835478,-400.0,0.00019778,2]
[359100857,1745707835488,-400.0,0.00019778,2]
[359100859,1745707835498,-400.0,0.00019778,2]
[359100861,1745707835509,-1204.35,0.00019778,2]
[359100863,1745707835519,-400.0,0.00019778,2]
[359100865,1745707835529,-400.0,0.00019778,2]
[359100867,1745707835539,-400.0,0.00019778,2]
[359100869,1745707835548,-421.44,0.00019778,2]
[359100871,1745707835558,-400.0,0.00019778,2]
[359100873,1745707835567,-400.0,0.00019778,2]
[359100875,1745707835577,-400.0,0.00019778,2]
[359100877,1745707835586,-502.36,0.00019778,2]
[359100880,1745707835597,-400.0,0.00019778,2]
[359100881,1745707835607,-400.0,0.00019778,2]
[359100884,1745707835618,-400.0,0.00019778,2]
[359100886,1745707835629,-400.0,0.00019778,2]
[359100888,1745707835640,-400.0,0.00019778,2]
[359100890,1745707835649,-400.0,0.00019778,2]
[359100892,1745707835659,-400.0,0.00019778,2]
[359100894,1745707835669,-597.82,0.00019778,2]
[359100896,1745707835679,-565.49,0.00019778,2]
[359100898,1745707835689,-400.0,0.00019778,2]
[359100900,1745707835700,-400.0,0.00019778,2]
[359100902,1745707835709,-400.0,0.00019778,2]
[359100904,1745707835718,-500.0,0.00019778,2]
[359100906,1745707835728,-400.0,0.00019778,2]
[359100908,1745707835737,-400.0,0.00019778,2]
[359100910,1745707835747,-400.0,0.00019778,2]
[359100912,1745707835756,-400.0,0.00019778,2]
[359100914,1745707835765,-400.0,0.00019778,2]
[359100916,1745707835775,-400.0,0.00019778,2]
[359100918,1745707835785,-400.0,0.00019778,2]
[359100920,1745707835795,-500.0,0.00019778,2]
[359100922,1745707835804,-506.30943716,0.00019778,2]
[359100924,1745707835814,-238.91678823,0.00019778,2]
[359100926,1745707835824,-400.0,0.00019778,2]
[359100928,1745707835833,-400.0,0.00019778,2]
[359100930,1745707835843,-400.0,0.00019778,2]
[359100932,1745707835852,-500.0,0.00019778,2]
[359100934,1745707835862,-452.64,0.00019778,2]
[359100936,1745707835872,-400.0,0.00019778,2]
[359100938,1745707835882,-400.0,0.00019778,2]
[359100940,1745707835892,-500.0,0.00019778,2]
[359100942,1745707835902,-400.0,0.00019778,2]
[359100944,1745707835911,-400.0,0.00019778,2]
[359100946,1745707835921,-939.52,0.00019778,2]
[359100948,1745707835930,-400.0,0.00019778,2]
[359100950,1745707835945,-400.0,0.00019778,2]
[359100953,1745707835955,-400.0,0.00019778,2]
[359100955,1745707835964,-638.85,0.00019778,2]
[359100957,1745707835974,-446.82,0.00019778,2]
[359100959,1745707835983,-595.13,0.00019778,2]
[359100961,1745707835993,-400.0,0.00019778,2]
[359100963,1745707836002,-400.0,0.00019778,2]
[359100965,1745707836012,-400.11,0.00019778,2]
[359100967,1745707836022,-702.75,0.00019778,2]
[359100969,1745707836031,-858.36,0.00019778,2]
[359100971,1745707836041,-440.89,0.00019778,2]
[359100973,1745707836051,-395.04628918,0.00019778,2]
[359100975,1745707836061,-400.0,0.00019778,2]
[359100977,1745707836071,-400.0,0.00019778,2]
[359100979,1745707836081,-443.94,0.00019778,2]
[359100981,1745707836090,-400.0,0.00019778,2]
[359100983,1745707836100,-400.0,0.00019778,2]
[359100985,1745707836110,-400.0,0.00019778,2]
[359100987,1745707836121,-400.0,0.00019778,2]
[359100989,1745707836131,-516.95,0.00019778,2]
[359100991,1745707836141,-500.0,0.00019778,2]
[359100993,1745707836151,-400.0,0.00019778,2]
[359100995,1745707836160,-400.0,0.00019778,2]
[359100997,1745707836170,-400.0,0.00019778,2]
[359100999,1745707836180,-400.0,0.00019778,2]
[359101001,1745707836190,-652.9,0.00019778,2]
[359101003,1745707836200,-500.0,0.00019778,2]
[359101005,1745707836209,-400.0,0.00019778,2]
[359101007,1745707836219,-429.22,0.00019778,2]
[359101009,1745707836229,-400.0,0.00019778,2]
[359101011,1745707836239,-400.0,0.00019778,2]
[359101013,1745707836249,-400.0,0.00019778,2]
[359101015,1745707836259,-434.15,0.00019778,2]
[359101017,1745707836269,-400.0,0.00019778,2]
[359101019,1745707836278,-653.75,0.00019778,2]
[359101021,1745707836288,-251.69064904,0.00019778,2]
[359101023,1745707836297,-500.0,0.00019778,2]
[359101025,1745707836307,-500.0,0.00019778,2]
[359101027,1745707836316,-454.67,0.00019778,2]
[359101029,1745707836327,-400.0,0.00019778,2]
[359101031,1745707836336,-400.0,0.00019778,2]
[359101033,1745707836348,-400.0,0.00019778,2]
[359101035,1745707836358,-400.0,0.00019778,2]
[359101037,1745707836369,-400.0,0.00019778,2]
[359101039,1745707836379,-400.0,0.00019778,2]
[359101041,1745707836389,-400.0,0.00019778,2]
[359101043,1745707836398,-400.0,0.00019778,2]
[359101045,1745707836408,-400.0,0.00019778,2]
[359101047,1745707836418,-400.0,0.00019778,2]
[359101049,1745707836428,-558.8,0.00019778,2]
[359101051,1745707836438,-400.0,0.00019778,2]
[359101053,1745707836447,-400.0,0.00019778,2]
[359101055,1745707836458,-502.21703479,0.00019778,2]
[359101057,1745707836467,-500.0,0.00019778,2]
[359101059,1745707836477,-400.0,0.00019778,2]
[359101061,1745707836487,-400.0,0.00019778,2]
[359101063,1745707836496,-400.0,0.00019778,2]
[359101065,1745707836507,-416.25,0.00019778,2]
[359101067,1745707836516,-400.0,0.00019778,2]
[359101069,1745707836526,-400.0,0.00019778,2]
[359101071,1745707836535,-500.0,0.00019778,2]
[359101073,1745707836545,-400.0,0.00019778,2]
[359101075,1745707836555,-500.0,0.00019778,2]
[359101077,1745707836564,-400.0,0.00019778,2]
[359101080,1745707836575,-400.0,0.00019778,2]
[359101082,1745707836585,-425.49,0.00019778,2]
[359101084,1745707836596,-572.16,0.00019778,2]
[359101086,1745707836606,-400.0,0.00019778,2]
[359101088,1745707836616,-400.0,0.00019778,2]
[359101090,1745707836626,-400.0,0.00019778,2]
[359101092,1745707836637,-400.0,0.00019778,2]
[359101094,1745707836647,-521.0,0.00019778,2]
[359101096,1745707836657,-400.0,0.00019778,2]
[359101098,1745707836667,-400.0,0.00019778,2]
[359101100,1745707836677,-510.72,0.00019778,2]
[359101102,1745707836687,-465.2,0.00019778,2]
[359101104,1745707836697,-400.0,0.00019778,2]
[359101106,1745707836707,-400.0,0.00019778,2]
[359101108,1745707836716,-500.0,0.00019778,2]
[359101110,1745707836726,-400.0,0.00019778,2]
[359101112,1745707836736,-400.0,0.00019778,2]
[359101114,1745707836745,-400.0,0.00019778,2]
[359101116,1745707836755,-400.0,0.00019778,2]
[359101118,1745707836765,-500.0,0.00019778,2]
[359101120,1745707836775,-510.4999362,0.00019778,2]
[359101122,1745707836785,-400.0,0.00019778,2]
[359101124,1745707836795,-400.0,0.00019778,2]
[359101126,1745707836805,-400.0,0.00019778,2]
[359101128,1745707836815,-400.0,0.00019778,2]
[359101130,1745707836825,-400.0,0.00019778,2]
[359101132,1745707836835,-500.0,0.00019778,2]
[359101134,1745707836845,-400.0,0.00019778,2]
[359101136,1745707836855,-400.0,0.00019778,2]
[359101138,1745707836866,-400.0,0.00019778,2]
[359101140,1745707836876,-400.0,0.00019778,2]
[359101142,1745707836886,-400.0,0.00019778,2]
[359101144,1745707836896,-400.0,0.00019778,2]
[359101146,1745707836906,-400.0,0.00019778,2]
[359101148,1745707836915,-413.65,0.00019778,2]
[359101150,1745707836926,-616.99,0.00019778,2]
[359101152,1745707836938,-400.0,0.00019778,2]
[359101154,1745707836949,-400.0,0.00019778,2]
[359101156,1745707836958,-400.0,0.00019778,2]
[359101158,1745707836968,-528.99536645,0.00019778,2]
[359101160,1745707836979,-609.73,0.00019778,2]
[359101162,1745707836989,-633.48,0.00019778,2]
[359101164,1745707836998,-400.0,0.00019778,2]
[359101166,1745707837007,-505.80791502,0.00019778,2]
[359101168,1745707837018,-400.0,0.00019778,2]
[359101170,1745707837029,-400.0,0.00019778,2]
[359101172,1745707837038,-1538.63,0.00019778,2]
[359101174,1745707837047,-400.0,0.00019778,2]
[359101176,1745707837056,-529.05749259,0.00019778,2]
[359101178,1745707837066,-327.15132585,0.00019778,2]
[359101180,1745707837075,-507.27729147,0.00019778,2]
[359101182,1745707837085,-400.0,0.00019778,2]
[359101184,1745707837095,-400.0,0.00019778,2]
[359101186,1745707837106,-400.0,0.00019778,2]
[359101188,1745707837115,-400.0,0.00019778,2]
[359101190,1745707837125,-400.0,0.00019778,2]
[359101192,1745707837134,-400.0,0.00019778,2]
[359101194,1745707837145,-503.96,0.00019778,2]
[359101196,1745707837154,-408.3,0.00019778,2]
[359101198,1745707837163,-691.09,0.00019778,2]
[359101200,1745707837173,-400.0,0.00019778,2]
[359101202,1745707837182,-400.0,0.00019778,2]
[359101204,1745707837192,-400.0,0.00019778,2]
[359101206,1745707837202,-605.84,0.00019778,2]
[359101208,1745707837212,-300.0,0.00019778,2]
[359101210,1745707837222,-414.13,0.00019778,2]
[359101212,1745707837231,-400.0,0.00019778,2]
[359101214,1745707837241,-410.86,0.00019778,2]
[359101216,1745707837251,-400.0,0.00019778,2]
[359101218,1745707837260,-400.0,0.00019778,2]